[Event "1000GM Winter GM Norm-2 2024"]
[Site "Sunnyvale/"]
[Date "2024.01.06"]
[Round "8.7"]
[White "Nagy, Gabor"]
[Black "Sathish, Pranav"]
[Result "1/2-1/2"]
[ECO "A81"]
[WhiteElo "2450"]
[BlackElo "2357"]
[Annotator "RC"]
[PlyCount "21"]
[EventDate "2023.12.14"]
[EventType "schev"]
[EventCountry "USA"]
[SourceTitle "playchess.com"]
[Source "ChessBase"]
[SourceQuality "1"]
[TimeControl "5400+30"]

1. d4 {[%emt 0:01:49]} f5 {[%emt 0:00:22]} 2. Nf3 {[%emt 1:29:41]} Nf6 {[%emt 0:00:08]} 3. g3 {[%emt 0:00:00]} g6 {[%emt 1:31:30]} 4. Bg2 {[%emt 0:00:00]} Bg7 {[%emt 0:00:00]} 5. O-O {[%emt 0:00:00]} O-O {[%emt 0:00:00]} 6. Nbd2 {[%emt 0:00:00]} Nc6 {[%emt 0:00:00]} 7. c3 {[%emt 0:00:00]} a5 {[%emt 0:00:00]} 8. Ne1 {[%emt 0:00:00]} d5 {[%emt 0:00:00]} 9. Nd3 {[%emt 0:00:00]} e6 {[%emt 0:00:00]} 10. Nf3 {[%emt 0:00:00]} b6 {[%emt 0:00:00]} 11. a4 {[%emt 0:00:00]} 1/2-1/2

[Event "1000GM Winter GM Norm-2 2024"]
[Site "Sunnyvale/"]
[Date "2024.01.06"]
[Round "8.8"]
[White "Mosquera, Miguel"]
[Black "Liu, Eric"]
[Result "0-1"]
[ECO "B53"]
[WhiteElo "2365"]
[BlackElo "2332"]
[Annotator "RC"]
[PlyCount "88"]
[EventDate "2023.12.14"]
[EventType "schev"]
[EventCountry "USA"]
[SourceTitle "playchess.com"]
[Source "ChessBase"]
[SourceQuality "1"]
[TimeControl "5400+30"]

1. e4 {[%emt 0:05:50]} c5 {[%emt 0:00:06]} 2. Nf3 {[%emt 0:00:09]} d6 {[%emt 0:00:05]} 3. d4 {[%emt 0:00:07]} cxd4 {[%emt 0:00:05]} 4. Qxd4 {[%emt 0:00:05]} a6 {[%emt 0:00:12]} 5. Bg5 {[%emt 0:01:35]} Nd7 {[%emt 0:07:15]} 6. Nc3 {[%emt 0:05:30]} Ngf6 {[%emt 0:02:50]} 7. Nd5 {[%emt 0:08:15]} e6 {[%emt 0:11:29]} 8. Nxf6+ {[%emt 0:00:48]} Nxf6 {[%emt 0:01:35]} 9. O-O-O {[%emt 0:00:57]} Be7 {[%emt 0:07:40]} 10. Kb1 {[%emt 0:17:50]} b5 {[%emt 0:07:14]} 11. Bxf6 {[%emt 0:11:17]} gxf6 {[%emt 0:00:07]} 12. g3 {[%emt 0:00:18]} Rb8 {[%emt 0:04:46]} 13. Qe3 {[%emt 0:04:21]} Qb6 {[%emt 0:00:21]} 14. Nd4 {[%emt 0:01:25]} Qc5 {[%emt 0:03:34]} 15. Bg2 {[%emt 0:01:59]} Bd7 {[%emt 0:05:17]} 16. Rhe1 {[%emt 0:00:51]} a5 {[%emt 0:03:41]} 17. Rd2 {[%emt 0:04:13]} a4 {[%emt 0:05:11]} 18. Red1 {[%emt 0:02:28]} b4 {[%emt 0:00:49]} 19. Nf5 {[%emt 0:01:34]} Qxe3 {[%emt 0:01:17]} 20. Nxe3 {[%emt 0:00:11]} Bb5 {[%emt 0:08:42]} 21. Rd4 {[%emt 0:08:53]} O-O {[%emt 0:00:23]} 22. Bf1 {[%emt 0:02:02]} Bxf1 {[%emt 0:02:13]} 23. Rxf1 {[%emt 0:02:05]} Rfc8 {[%emt 0:00:12]} 24. Rfd1 {[%emt 0:02:18]} Kg7 {[%emt 0:04:24]} 25. b3 {[%emt 0:02:04]} axb3 {[%emt 0:00:05]} 26. cxb3 {[%emt 0:00:07]} Rc3 {[%emt 0:04:41]} 27. Rc4 {[%emt 0:03:04]} Rxc4 {[%emt 0:01:43]} 28. Nxc4 {[%emt 0:00:06]} Rd8 {[%emt 0:02:03]} 29. Ne3 {[%emt 0:01:14]} f5 {[%emt 0:01:37]} 30. exf5 {[%emt 0:01:28]} d5 {[%emt 0:00:03]} 31. fxe6 {[%emt 0:00:09]} fxe6 {[%emt 0:00:04]} 32. f4 {[%emt 0:00:21]} Kf6 {[%emt 0:02:41]} 33. Re1 {[%emt 0:07:44]} h5 {[%emt 0:00:44]} 34. Nc2 {[%emt 0:00:51]} Bc5 {[%emt 0:01:09]} 35. Re2 {[%emt 0:01:38]} h4 {[%emt 0:01:19]} 36. Ne1 {[%emt 0:01:01]} hxg3 {[%emt 0:01:04]} 37. hxg3 {[%emt 0:00:01]} Rg8 {[%emt 0:00:06]} 38. Nd3 {[%emt 0:00:05]} Bd4 {[%emt 0:01:21]} 39. Rg2 {[%emt 0:00:49]} Kf5 {[%emt 0:00:03]} 40. Kc2 {[%emt 0:00:08]} Ke4 {[%emt 0:01:17]} 41. Re2+ {[%emt 0:00:50]} Be3 {[%emt 0:00:08]} 42. Nxb4 {[%emt 0:01:09]} d4 {[%emt 0:00:22]} 43. g4 {[%emt 0:02:42]} d3+ {[%emt 0:00:14]} 44. Nxd3 {[%emt 0:00:06]} Rc8+ {[%emt 0:00:03]} 0-1

[Event "1000GM Winter GM Norm-2 2024"]
[Site "Sunnyvale/"]
[Date "2024.01.07"]
[Round "9.3"]
[White "Xu, Yi"]
[Black "Wang, Isaac"]
[Result "1-0"]
[ECO "B41"]
[WhiteElo "2511"]
[BlackElo "2316"]
[Annotator "TA"]
[PlyCount "77"]
[EventDate "2023.12.14"]
[EventType "schev"]
[EventCountry "USA"]
[SourceTitle "playchess.com"]
[Source "ChessBase"]
[SourceQuality "1"]
[TimeControl "5400+30"]

{[%evp 11,77,34,13,18,34,38,30,27,30,39,29,14,37,40,43,48,32,32,54,56,58,55,57,58,55,55,64,58,58,58,65,53,51,58,50,42,54,28,24,30,106,114,106,101,116,114,120,120,117,111,117,105,105,96,102,100,183,175,175,167,259,203,374,313,1489,1141,2420,1975]} 1. e4 {[%emt 0:00:27]} c5 {[%emt 0:00:50]} 2. Nf3 {[%emt 0:00:08]} e6 {[%emt 0:00:03]} 3. d4 {[%emt 0:00:08]} cxd4 {[%emt 0:00:18]} 4. Nxd4 {[%emt 0:00:03]} a6 {[%emt 0:00:06]} 5. c4 {[%emt 0:00:17]} Nf6 {[%emt 0:00:06]} 6. Nc3 {[%emt 0:00:07]} Bb4 {[%emt 0:00:03]} 7. Qd3 {[%emt 0:00:44] B41: Sicilian: Kan Variation: 5 c4.} O-O {[%emt 0:01:00]} 8. e5 {[%emt 0:00:42]} Ne8 {[%emt 0:00:05]} 9. Bf4 {[%emt 0:00:28] White has an edge.} d6 {[%emt 0:00:18]} 10. exd6 {[%emt 0:00:35]} Bxd6 {[%emt 0:00:25]} 11. Nf3 {[%emt 0:00:22] next Rd1 is good for White.} Nc6 {[%emt 0:02:07] [#]} (11... Qc7 {seems wilder.} 12. Ng5 f5 13. Bxd6 Nxd6 14. Qe3 f4) 12. Bxd6 $146 {[%emt 0:01:24]} ({Much weaker is} 12. Ng5 g6 13. Be3 (13. Qh3 h5 $15) 13... Qa5 $11) ({Predecessor:} 12. Ng5 f5 13. Bxd6 Nxd6 14. f4 h6 15. Nf3 Nb4 16. Qd2 Ne4 17. Qxd8 Rxd8 18. Rc1 {½-½ Fuchs,F (2096)-Lohvinov,P (2237) Bavaria-ch 94th 2023 (2)}) 12... Qxd6 {[%emt 0:00:53]} 13. Qxd6 {[%emt 0:01:50]} Nxd6 {[%emt 0:00:03]} 14. O-O-O {[%emt 0:01:10]} Rd8 {[%emt 0:03:38][%cal Ob7b5]} 15. c5 {[%emt 0:03:43]} Ne8 {[%emt 0:05:00]} 16. Rxd8 {[%emt 0:00:33]} Nxd8 {[%emt 0:00:02]} 17. Na4 {[%emt 0:30:58]} Nc6 {[%emt 0:03:35]} 18. Nb6 {[%emt 0:00:28]} Rb8 {[%emt 0:00:03]} 19. Be2 {[%emt 0:05:37]} Kf8 {[%emt 0:02:23]} 20. Rd1 {[%emt 0:01:00]} Ke7 {[%emt 0:01:36]} 21. Nd4 {[%emt 0:04:30] White has more active pieces. The black rooks are badly placed.} Nxd4 {[%emt 0:01:21]} 22. Rxd4 {[%emt 0:00:06]} Nf6 $1 {[%emt 0:04:10]} 23. Rb4 {[%emt 0:05:41] Nxc8+ is the strong threat.} Kd8 {[%emt 0:04:05]} 24. g4 {[%emt 0:11:16]} h6 {[%emt 0:02:49]} 25. h4 $36 {[%emt 0:03:56][%cal Bh2h4,Bh4g5][%mdl 2080] White is more active.} Bd7 {[%emt 0:08:08]} (25... Kc7 $11 {keeps the balance.}) 26. g5 $16 {[%emt 0:02:11]} hxg5 {[%emt 0:02:58]} 27. hxg5 {[%emt 0:00:06]} Nd5 {[%emt 0:04:37]} 28. Nxd5 {[%emt 0:00:06]} exd5 {[%emt 0:00:03] [#]} 29. Bxa6 $1 {[%emt 0:00:10][%mdl 4096] Endgame KRB-KRB} Rc8 {[%emt 0:01:55]} 30. Bxb7 {[%emt 0:02:04]} ({Much worse is} 30. Rxb7 $6 Rxc5+ 31. Kd2 Ra5 $11) 30... Rxc5+ {[%emt 0:00:07]} 31. Kd2 {[%emt 0:00:07]} Kc7 {[%emt 0:00:31]} 32. a3 {[%emt 0:02:24][%cal Ba2a3,Ba3a4][%mdl 32]} Ra5 {[%emt 0:00:36] Prevents Ba6.} 33. Ke3 {[%emt 0:02:53]} Bf5 {[%emt 0:03:55] [#]} (33... Bh3 $16 {was necessary.} 34. f3 Bg2) 34. f3 $1 $18 {[%emt 0:02:19][%cal Bf2f3,Bf3f4][%mdl 32]} Be6 {[%emt 0:00:32]} 35. Kd4 {[%emt 0:00:11]} Kd7 {[%emt 0:00:54]} (35... f6 $142) 36. f4 {[%emt 0:05:19]} g6 $2 {[%emt 0:00:06]} (36... Kc7 37. Ke5 Kd7) 37. a4 {[%emt 0:01:38]} Kd6 $2 {[%emt 0:00:43]} (37... Kc7 38. Ke5 Kd7) 38. Rb6+ {[%emt 0:01:00]} Kc7 {[%emt 0:00:12]} 39. Ra6 {[%emt 0:00:16] Weighted Error Value: White=0.04 (flawless) /Black=0.20 (precise)} 1-0

[Event "1000GM Winter GM Norm-2 2024"]
[Site "Sunnyvale/"]
[Date "2024.01.07"]
[Round "9.4"]
[White "Delgado Ramirez, Neuris"]
[Black "Amburgy, Ryan"]
[Result "1-0"]
[ECO "A05"]
[WhiteElo "2517"]
[BlackElo "2200"]
[Annotator "TA"]
[PlyCount "111"]
[EventDate "2023.12.14"]
[EventType "schev"]
[EventCountry "USA"]
[SourceTitle "playchess.com"]
[Source "ChessBase"]
[SourceQuality "1"]
[TimeControl "5400+30"]

{[%evp 11,109,0,2,-4,10,1,1,-8,18,21,38,46,38,0,27,-13,20,10,77,86,93,92,97,66,84,76,91,64,120,123,101,82,110,110,109,109,111,91,93,103,110,76,90,82,95,76,91,90,100,92,122,119,120,97,140,139,112,120,121,101,203,197,309,254,404,140,312,234,227,183,210,186,432,411,2193,1662,4622,4132,2276,2193,1892,1875,29962,29962,29954,12798,4826,966,29972,29975,29973,29976,29974,29976,29996,29997,29997,29998,29998,29999]} 1. Nf3 {[%emt 0:09:42]} d5 {[%emt 0:00:06]} 2. g3 {[%emt 0:00:40]} g6 {[%emt 0:00:10]} 3. Bg2 {[%emt 0:00:26]} Bg7 {[%emt 0:00:07]} 4. O-O {[%emt 0:00:20]} Nf6 {[%emt 0:00:10]} 5. b3 {[%emt 0:00:31]} c5 {[%emt 0:01:00]} 6. Bb2 {[%emt 0:00:14]} Nc6 {[%emt 0:00:11]} 7. Ne5 {[%emt 0:00:39] A05: Réti Opening: 1 Nf3 Nf6.} Nxe5 {[%emt 0:05:51]} 8. Bxe5 {[%emt 0:00:11]} O-O {[%emt 0:00:05]} 9. e3 {[%emt 0:00:13] The position is equal.} Bf5 {[%emt 0:00:52] [#]} 10. Nc3 $146 {[%emt 0:05:07][%cal Bb1c3,Bc3e2,Be2f4][%mdl 32]} ({Predecessor:} 10. d3 Qd7 11. Nd2 Bh3 12. Qe2 Bxg2 13. Kxg2 Rac8 14. Rfe1 b5 15. a4 a6 16. Ra2 {1-0 Tasdogen,D (2303)-Burcu,C (2374) TUR-chT 2nd League 2023 (5.12)}) 10... Ne4 {[%emt 0:02:30]} 11. Bxg7 {[%emt 0:00:57]} Kxg7 {[%emt 0:00:02]} 12. Ne2 {[%emt 0:05:06]} Rc8 {[%emt 0:02:53]} 13. g4 {[%emt 0:03:04]} Be6 {[%emt 0:00:57]} (13... Bxg4 14. f3 $16) 14. Nf4 {[%emt 0:00:34][%cal Oc2c4]} Qd6 {[%emt 0:02:05] [#]} (14... c4 $11 {keeps the balance.}) 15. c4 $1 $16 {[%emt 0:01:16] And now cxd5 would win.} f5 {[%emt 0:04:04]} (15... g5 16. Nxd5) 16. cxd5 {[%emt 0:02:12]} Bd7 {[%emt 0:00:09]} (16... Bxd5 $2 17. Nxd5 Qxd5 18. d3 $18) 17. d3 {[%emt 0:01:09]} Ng5 {[%emt 0:01:27]} 18. gxf5 {[%emt 0:00:44]} Bxf5 {[%emt 0:00:10]} 19. Rc1 {[%emt 0:00:32]} b5 {[%emt 0:03:19]} (19... b6 $14) 20. Qd2 {[%emt 0:02:58]} Bd7 {[%emt 0:03:27]} 21. Kh1 {[%emt 0:02:40]} e5 {[%emt 0:03:29]} 22. dxe6 {[%emt 0:00:17]} Nxe6 {[%emt 0:00:04]} 23. Qb2+ {[%emt 0:01:37]} Kh6 {[%emt 0:00:27]} 24. Nxe6 {[%emt 0:01:05]} Bxe6 {[%emt 0:00:10]} 25. f4 {[%emt 0:02:08]} Bg4 {[%emt 0:05:34]} 26. Qf2 {[%emt 0:03:39]} Kg7 {[%emt 0:03:13]} 27. h3 {[%emt 0:01:02]} Bd7 {[%emt 0:01:46]} 28. e4 {[%emt 0:00:35]} Qd4 {[%emt 0:00:13]} 29. Qg3 {[%emt 0:00:20]} Kh8 {[%emt 0:01:10]} 30. Rc2 {[%emt 0:00:06]} c4 {[%emt 0:03:43]} 31. dxc4 {[%emt 0:01:12]} bxc4 {[%emt 0:00:05]} 32. bxc4 {[%emt 0:00:40]} Rxc4 {[%emt 0:00:57]} 33. Rxc4 {[%emt 0:00:18]} Qxc4 {[%emt 0:00:02]} 34. Qa3 {[%emt 0:00:12]} Rf7 {[%emt 0:03:46]} 35. Rd1 {[%emt 0:01:56]} Kg7 {[%emt 0:01:48] [#]} (35... Qc7 $16 36. f5 gxf5) 36. Qb2+ $1 $18 {[%emt 0:01:03]} ({Stronger than} 36. Qxa7 Bxh3 37. Qd4+ Qxd4 38. Rxd4 Bxg2+ 39. Kxg2 Rxf4 $11) 36... Kh6 {[%emt 0:00:18] [#]} (36... Kg8 $142 37. f5 Qb5) 37. f5 $1 {[%emt 0:01:27][%mdl 512] fxg6 would be deadly.} Qc5 {[%emt 0:04:53]} (37... Qc7 $142 38. a3 gxf5) (37... Bc6 38. Qe5) 38. f6 $2 {[%emt 0:02:59]} (38. Rd5 $18 Qc7 39. fxg6 Kxg6 40. e5) 38... Bc6 $2 {[%emt 0:02:34] This costs Black the game.} (38... Be6 $16 39. Rf1 g5) 39. Qd2+ {[%emt 0:04:39]} Qg5 {[%emt 0:00:19]} 40. Qxg5+ {[%emt 0:00:14]} Kxg5 {[%emt 0:00:01][%mdl 4096] Endgame KRB-KRB} 41. Rd6 {[%emt 0:01:47]} ({Resist} 41. e5 $6 Bxg2+ 42. Kxg2 Kf5 $16) 41... Bb7 {[%emt 0:00:36]} (41... Bd7 {might work better.}) 42. e5 {[%emt 0:01:29] Hoping for e6.} Kf5 {[%emt 0:00:47]} (42... Bc8 $142 43. e6 Bxe6) 43. e6 {[%emt 0:01:04]} Bxg2+ {[%emt 0:00:03]} 44. Kxg2 {[%emt 0:00:05]} Rxf6 {[%emt 0:00:04]} 45. e7 {[%emt 0:00:03]} Rxd6 {[%emt 0:00:04]} 46. e8=Q {[%emt 0:00:07] Intending Qf7+ and mate. KQ-KR} (46. e8=R $2 {loses.} Rd2+ 47. Kf3 Rxa2 $19) 46... a6 {[%emt 0:00:59]} 47. Qf7+ {[%emt 0:00:21]} Ke5 {[%emt 0:00:43]} 48. Qxh7 {[%emt 0:00:25] White wants to mate with Qc7.} Kf6 {[%emt 0:00:41]} 49. Kf3 {[%emt 0:00:34]} Rd5 {[%emt 0:00:30]} 50. Qh4+ {[%emt 0:00:25] ?ev?.} Kg7 {[%emt 0:00:12]} 51. Qe7+ {[%emt 0:00:43]} Kh6 {[%emt 0:00:02]} 52. Qf8+ {[%emt 0:01:13]} Kg5 {[%emt 0:00:03] [#]} 53. h4+ $1 {[%emt 0:00:47]} Kxh4 {[%emt 0:00:06]} 54. Qh6+ {[%emt 0:00:04]} Rh5 {[%emt 0:00:08]} 55. Qf4+ {[%emt 0:00:04]} Kh3 {[%emt 0:00:01]} 56. Qg3# {[%emt 0:00:39] Weighted Error Value: White=0.18 (very precise) /Black=0.61} 1-0

[Event "1000GM Winter GM Norm-2 2024"]
[Site "Sunnyvale/"]
[Date "2024.01.07"]
[Round "9.5"]
[White "Lou, Yiping"]
[Black "Guo, Andrew"]
[Result "1-0"]
[ECO "E71"]
[WhiteElo "2447"]
[BlackElo "2255"]
[Annotator "RC"]
[PlyCount "71"]
[EventDate "2023.12.14"]
[EventType "schev"]
[EventCountry "USA"]
[SourceTitle "playchess.com"]
[Source "ChessBase"]
[SourceQuality "1"]
[TimeControl "5400+30"]

1. d4 {[%emt 0:00:06]} Nf6 {[%emt 0:00:05]} 2. c4 {[%emt 0:00:04]} g6 {[%emt 0:00:05]} 3. Nc3 {[%emt 0:00:05]} Bg7 {[%emt 0:00:03]} 4. e4 {[%emt 0:00:07]} d6 {[%emt 0:00:03]} 5. h3 {[%emt 0:00:15]} O-O {[%emt 0:00:06]} 6. Be3 {[%emt 0:00:04]} e5 {[%emt 0:00:21]} 7. d5 {[%emt 0:00:12]} a5 {[%emt 0:00:05]} 8. g4 {[%emt 0:00:31]} Na6 {[%emt 0:00:11]} 9. Nge2 {[%emt 0:00:28]} Nc5 {[%emt 0:00:21]} 10. Ng3 {[%emt 0:00:27]} Qe7 {[%emt 0:00:20]} 11. Be2 {[%emt 0:05:06]} c6 {[%emt 0:05:03]} 12. g5 {[%emt 0:16:57]} Nfd7 {[%emt 0:01:14]} 13. h4 {[%emt 0:04:35]} cxd5 {[%emt 0:00:22]} 14. cxd5 {[%emt 0:12:38]} b6 {[%emt 0:04:03]} 15. h5 {[%emt 0:02:48]} Nb8 {[%emt 0:01:30]} 16. Kf1 {[%emt 0:03:39]} Bd7 {[%emt 0:01:51]} 17. Kg2 {[%emt 0:01:15]} Nba6 {[%emt 0:00:49]} 18. Rh2 {[%emt 0:03:20]} Rfb8 {[%emt 0:01:45]} 19. Nb5 {[%emt 0:09:22]} Bf8 {[%emt 0:06:52]} 20. Bc4 {[%emt 0:00:59]} Rc8 {[%emt 0:09:37]} 21. Qe2 {[%emt 0:00:50]} Nc7 {[%emt 0:04:06]} 22. hxg6 {[%emt 0:02:00]} fxg6 {[%emt 0:01:55]} 23. Rah1 {[%emt 0:00:14]} Nxb5 {[%emt 0:01:01]} 24. Bxb5 {[%emt 0:00:29]} Rc7 {[%emt 0:00:07]} 25. Rxh7 {[%emt 0:05:44]} Qxh7 {[%emt 0:00:15]} 26. Rxh7 {[%emt 0:00:03]} Kxh7 {[%emt 0:00:09]} 27. Bxd7 {[%emt 0:00:10]} Rxd7 {[%emt 0:01:35]} 28. Qg4 {[%emt 0:06:44]} Raa7 {[%emt 0:02:13]} 29. Bxc5 {[%emt 0:02:01]} bxc5 {[%emt 0:00:08]} 30. Qe6 {[%emt 0:24:17]} Rdb7 {[%emt 0:03:00]} 31. b3 {[%emt 0:00:00]} Rb6 {[%emt 0:04:56]} 32. Nf5 {[%emt 0:00:00]} a4 {[%emt 0:03:41]} 33. Qe8 {[%emt 0:00:00]} axb3 {[%emt 0:03:02]} 34. Qxf8 {[%emt 0:00:00]} bxa2 {[%emt 0:46:36]} 35. Nh6 {[%emt 0:00:00]} Rg7 {[%emt 0:00:00]} 36. Ng4 {[%emt 0:00:00]} 1-0

[Event "1000GM Winter GM Norm-2 2024"]
[Site "Sunnyvale/"]
[Date "2024.01.07"]
[Round "9.6"]
[White "Shivakumar, Shawnak"]
[Black "Mosquera, Miguel"]
[Result "1/2-1/2"]
[ECO "D17"]
[WhiteElo "2307"]
[BlackElo "2365"]
[Annotator "RC"]
[PlyCount "67"]
[EventDate "2023.12.14"]
[EventType "schev"]
[EventCountry "USA"]
[SourceTitle "playchess.com"]
[Source "ChessBase"]
[SourceQuality "1"]
[TimeControl "5400+30"]

1. d4 {[%emt 0:08:15]} d5 {[%emt 0:00:18]} 2. c4 {[%emt 0:01:58]} c6 {[%emt 0:00:07]} 3. Nf3 {[%emt 0:00:19]} Nf6 {[%emt 0:00:09]} 4. Nc3 {[%emt 0:00:50]} dxc4 {[%emt 0:00:21]} 5. a4 {[%emt 0:01:26]} Bf5 {[%emt 0:01:33]} 6. Ne5 {[%emt 0:01:11]} e6 {[%emt 0:01:01]} 7. f3 {[%emt 0:00:18]} Bb4 {[%emt 0:00:07]} 8. e4 {[%emt 0:00:27]} Bxe4 {[%emt 0:00:23]} 9. fxe4 {[%emt 0:00:33]} Nxe4 {[%emt 0:00:07]} 10. Bd2 {[%emt 0:00:07]} Qxd4 {[%emt 0:00:10]} 11. Nxe4 {[%emt 0:00:15]} Qxe4+ {[%emt 0:00:17]} 12. Qe2 {[%emt 0:00:05]} Bxd2+ {[%emt 0:00:10]} 13. Kxd2 {[%emt 0:00:05]} Qd4+ {[%emt 0:00:33]} 14. Kc2 {[%emt 0:00:17]} Na6 {[%emt 0:00:05]} 15. Rd1 {[%emt 0:00:04]} Qc5 {[%emt 0:03:01]} 16. Qe4 {[%emt 0:24:49]} Nb4+ {[%emt 0:12:25]} 17. Kb1 {[%emt 0:01:13]} c3 {[%emt 0:01:04]} 18. Bd3 {[%emt 0:05:08]} O-O-O {[%emt 0:13:51]} 19. Bc2 {[%emt 0:04:15]} Nxc2 {[%emt 0:09:16]} 20. Kxc2 {[%emt 0:00:41]} cxb2+ {[%emt 0:00:44]} 21. Kxb2 {[%emt 0:00:36]} f5 {[%emt 0:00:33]} 22. Nd3 {[%emt 0:02:31]} Qb6+ {[%emt 0:07:36]} 23. Qb4 {[%emt 0:00:10]} Qxb4+ {[%emt 0:02:31]} 24. Nxb4 {[%emt 0:01:12]} e5 {[%emt 0:00:13]} 25. Kc3 {[%emt 0:00:43]} Kc7 {[%emt 0:01:54]} 26. Rde1 {[%emt 0:02:09]} e4 {[%emt 0:09:51]} 27. g4 {[%emt 0:01:39]} g6 {[%emt 0:03:25]} 28. gxf5 {[%emt 0:01:28]} gxf5 {[%emt 0:00:01]} 29. Rhf1 {[%emt 0:01:10]} Rhf8 {[%emt 0:01:02]} 30. Nc2 {[%emt 0:00:40]} Kd6 {[%emt 0:03:26]} 31. Nd4 {[%emt 0:01:52]} Ke5 {[%emt 0:00:13]} 32. Nf3+ {[%emt 0:00:04]} Kf6 {[%emt 0:05:51]} 33. Nd4 {[%emt 0:00:27]} Ke5 {[%emt 0:00:13]} 34. Nf3+ {[%emt 0:00:05]} 1/2-1/2

[Event "1000GM Winter GM Norm-2 2024"]
[Site "Sunnyvale/"]
[Date "2024.01.07"]
[Round "9.7"]
[White "Liu, Eric"]
[Black "Nagy, Gabor"]
[Result "0-1"]
[ECO "C54"]
[WhiteElo "2332"]
[BlackElo "2450"]
[Annotator "RC"]
[PlyCount "48"]
[EventDate "2023.12.14"]
[EventType "schev"]
[EventCountry "USA"]
[SourceTitle "playchess.com"]
[Source "ChessBase"]
[SourceQuality "1"]
[TimeControl "5400+30"]

1. e4 {[%emt 0:00:00]} e5 {[%emt 0:02:00]} 2. Nf3 {[%emt 0:00:08]} Nc6 {[%emt 0:00:30]} 3. Bc4 {[%emt 0:00:30]} Bc5 {[%emt 0:00:30]} 4. c3 {[%emt 0:00:30]} Nf6 {[%emt 0:00:30]} 5. d3 {[%emt 0:00:30]} O-O {[%emt 0:00:30]} 6. Nbd2 {[%emt 0:00:30]} d5 {[%emt 0:00:30]} 7. exd5 {[%emt 0:00:30]} Nxd5 {[%emt 0:00:30]} 8. Ne4 {[%emt 0:00:30]} Be7 {[%emt 0:00:30]} 9. a4 {[%emt 0:00:30]} Kh8 {[%emt 0:00:30]} 10. a5 {[%emt 0:00:30]} f5 {[%emt 0:00:30]} 11. Neg5 {[%emt 0:00:30]} Bxg5 {[%emt 1:29:30]} 12. Nxg5 {[%emt 0:16:18]} f4 {[%emt 0:00:00]} 13. h4 {[%emt 0:07:38]} Bf5 {[%emt 0:00:00]} 14. Qb3 {[%emt 0:11:42]} Nde7 {[%emt 0:00:00]} 15. Qc2 {[%emt 0:08:03]} Qe8 {[%emt 0:00:00]} 16. b4 {[%emt 0:04:53]} b5 {[%emt 0:00:00]} 17. axb6 {[%emt 0:00:51]} cxb6 {[%emt 0:00:00]} 18. Qe2 {[%emt 0:11:45]} Rd8 {[%emt 0:00:00]} 19. h5 {[%emt 0:02:41]} Nd5 {[%emt 0:00:00]} 20. Bd2 {[%emt 0:01:22]} h6 {[%emt 0:00:00]} 21. Ne4 {[%emt 0:00:34]} Nf6 {[%emt 0:00:00]} 22. Bc1 {[%emt 0:00:30]} Nd5 {[%emt 0:00:00]} 23. Bb2 {[%emt 0:00:30]} Be6 {[%emt 0:00:00]} 24. Qc2 {[%emt 0:00:30]} Bf5 {[%emt 0:00:00]} 0-1

[Event "1000GM Winter GM Norm-2 2024"]
[Site "Sunnyvale/"]
[Date "2024.01.07"]
[Round "9.8"]
[White "Sathish, Pranav"]
[Black "Miezis, Normunds"]
[Result "1/2-1/2"]
[ECO "B40"]
[WhiteElo "2357"]
[BlackElo "2419"]
[Annotator "RC"]
[PlyCount "51"]
[EventDate "2023.12.14"]
[EventType "schev"]
[EventCountry "USA"]
[SourceTitle "playchess.com"]
[Source "ChessBase"]
[SourceQuality "1"]
[TimeControl "5400+30"]

1. e4 {[%emt 0:00:00]} c5 {[%emt 0:00:24]} 2. Nf3 {[%emt 0:00:09]} e6 {[%emt 0:00:22]} 3. b3 {[%emt 0:00:07]} b6 {[%emt 0:01:39]} 4. Bb2 {[%emt 0:00:06]} Bb7 {[%emt 0:00:21]} 5. Nc3 {[%emt 0:00:06]} Nc6 {[%emt 0:02:55]} 6. d4 {[%emt 0:00:12]} cxd4 {[%emt 0:06:37]} 7. Nxd4 {[%emt 0:00:31]} Nf6 {[%emt 0:02:47]} 8. Nxc6 {[%emt 0:02:00]} dxc6 {[%emt 0:01:08]} 9. Bd3 {[%emt 0:01:46]} Bd6 {[%emt 0:04:03]} 10. Qe2 {[%emt 0:05:16]} e5 {[%emt 0:03:19]} 11. Nd1 {[%emt 0:09:12]} b5 {[%emt 0:08:16]} 12. O-O {[%emt 0:00:38]} O-O {[%emt 0:00:53]} 13. Ne3 {[%emt 0:00:05]} Re8 {[%emt 0:00:53]} 14. Rad1 {[%emt 0:02:06]} g6 {[%emt 0:04:01]} 15. Qf3 {[%emt 0:13:07]} Qe7 {[%emt 0:02:49]} 16. Qh3 {[%emt 0:03:06]} Rad8 {[%emt 0:03:27]} 17. Qh6 {[%emt 0:04:35]} Bc5 {[%emt 0:07:55]} 18. Bc1 {[%emt 0:03:43]} Bc8 {[%emt 0:12:18]} 19. Qh4 {[%emt 0:03:48]} Nh5 {[%emt 0:05:44]} 20. Qxe7 {[%emt 0:00:32]} Bxe7 {[%emt 0:01:23]} 21. g3 {[%emt 0:01:09]} Bc5 {[%emt 0:04:32]} 22. c3 {[%emt 0:02:23]} a6 {[%emt 0:02:16]} 23. Bc2 {[%emt 0:00:47]} Nf6 {[%emt 0:00:27]} 24. f3 {[%emt 0:00:34]} h5 {[%emt 0:01:34]} 25. h4 {[%emt 0:00:57]} Be6 {[%emt 0:00:53]} 26. Rxd8 {[%emt 0:00:14]} 1/2-1/2